fUST/lending_fUST_20240621
["ID","MTS","AMOUNT","RATE_DAILY","PERIOD"]
[330026764,1718951443227,-500.0,0.00054602,120]
[330026765,1718951443236,-498.64728639,0.00054602,120]
[330026766,1718951443246,-500.0,0.00054602,120]
[330026767,1718951443255,-500.0,0.00054602,120]
[330026768,1718951443265,-729.24,0.00054602,120]
[330026769,1718951443276,-1148.87,0.00054602,120]
[330026770,1718951443285,-3598.75,0.00054602,120]
[330026771,1718951443294,-500.0,0.00054602,120]
[330026772,1718951443304,-500.0,0.00054602,120]
[330026773,1718951443313,-151.0,0.00054602,14]
[330026774,1718951443327,-151.0,0.00054602,14]
[330026775,1718951443343,-151.0,0.00054602,14]
[330026776,1718951443358,-221.642433,0.00054602,14]
[330026777,1718951443369,-221.642433,0.00054602,14]
[330026778,1718951443384,-221.642433,0.00054602,14]
[330026779,1718951443398,-151.0,0.00054602,14]
[330026780,1718951443413,-151.0,0.00054602,14]
[330026781,1718951443428,-151.0,0.00054602,14]
[330026782,1718951443444,-500.0,0.00054602,120]
[330026783,1718951443459,-500.0,0.00054602,120]
[330026784,1718951443473,-221.642433,0.00054602,14]
[330026785,1718951443486,-221.642433,0.00054602,14]
[330026786,1718951443501,-221.642433,0.00054602,14]
[330026787,1718951443514,-1237.19,0.00054602,120]
[330026788,1718951443526,-610.160949,0.00054602,14]
[330026789,1718951443538,-610.160949,0.00054602,14]
[330026790,1718951443551,-610.160949,0.00054602,14]
[330026791,1718951443564,-610.160949,0.00054602,14]
[330026792,1718951443578,-2020.21,0.00054602,120]
[330026793,1718951443592,-12326.84,0.00054602,120]
[330026794,1718951443607,-645.26365807,0.00054602,2]
[330026795,1718951443622,-610.160949,0.00054602,14]
[330026796,1718951443634,-610.160949,0.00054602,14]
[330026797,1718951443645,-610.160949,0.00054602,14]
[330026798,1718951443656,-610.160949,0.00054602,14]
[330026799,1718951443669,-883.04,0.00054602,120]
[330026800,1718951443682,-5120.93,0.00054602,120]
[330026801,1718951443695,-1427.93,0.00054602,120]
[330026802,1718951443707,-1594.25,0.00054602,120]
[330026803,1718951443719,-500.0,0.00054602,120]
[330026804,1718951443733,-2443.82,0.00054602,120]
[330026805,1718951443744,-716.9,0.00054602,120]
[330026806,1718951443755,-19827.42,0.00054602,120]
[330026807,1718951443767,-1645.57,0.00054602,120]
[330026808,1718951443779,-189.02474437,0.00054602,120]
[330026809,1718951443790,-500.0,0.00054602,120]
[330026810,1718951443803,-982.3,0.00054602,120]
[330026811,1718951443815,-1000.0,0.00054602,10]
[330026812,1718951443827,-3500.042747,0.00054602,14]
[330026813,1718951443839,-1000.0,0.00054602,10]
[330026814,1718951443851,-3500.042747,0.00054602,14]
[330026815,1718951443862,-3500.042747,0.00054602,14]
[330026816,1718951443875,-500.0,0.00054602,120]
[330026817,1718951443886,-3500.042747,0.00054602,14]
[330026818,1718951443898,-1000.0,0.00054602,10]
[330026819,1718951443912,-1000.0,0.00054602,10]
[330026820,1718951443923,-1000.0,0.00054602,10]
[330026821,1718951443935,-1000.0,0.00054602,10]
[330026822,1718951443947,-1317.39,0.00054602,120]
[330026823,1718951443958,-500.0,0.00054602,120]
[330026824,1718951443970,-1000.0,0.00054602,10]
[330026825,1718951443982,-1000.0,0.00054602,10]
[330026826,1718951443993,-500.0,0.00054602,120]
[330026827,1718951444004,-1000.0,0.00054602,10]
[330026828,1718951444016,-3500.042747,0.00054602,14]
[330026829,1718951444028,-1000.0,0.00054602,10]
[330026830,1718951444040,-3500.042747,0.00054602,14]
[330026831,1718951444052,-1000.0,0.00054602,10]
[330026832,1718951444064,-3500.042747,0.00054602,14]
[330026833,1718951444075,-1000.0,0.00054602,10]
[330026834,1718951444087,-3500.042747,0.00054602,14]
[330026835,1718951444099,-1000.0,0.00054602,10]
[330026836,1718951444112,-650.522362,0.00054602,14]
[330026837,1718951444125,-1000.0,0.00054602,10]
[330026838,1718951444137,-250.0,0.00054602,120]
[330026839,1718951444151,-650.522362,0.00054602,14]
[330026840,1718951444163,-500.0,0.00054602,120]
[330026841,1718951444175,-1000.0,0.00054602,10]
[330026842,1718951444188,-650.522362,0.00054602,14]
[330026843,1718951444199,-1000.0,0.00054602,10]
[330026844,1718951444212,-650.522362,0.00054602,14]
[330026845,1718951444224,-1000.0,0.00054602,10]
[330026846,1718951444236,-1000.0,0.00054602,10]
[330026847,1718951444249,-1000.0,0.00054602,10]
[330026848,1718951444262,-1000.0,0.00054602,10]
[330026849,1718951444387,-1000.0,0.00054602,10]
[330026850,1718951444396,-1000.0,0.00054602,10]
[330026851,1718951444407,-650.522362,0.00054602,14]
[330026852,1718951444417,-650.522362,0.00054602,14]
[330026853,1718951444426,-650.522362,0.00054602,14]
[330026854,1718951444436,-650.522362,0.00054602,14]
[330026855,1718951444445,-151.0,0.00054602,14]
[330026856,1718951444455,-151.0,0.00054602,14]
[330026857,1718951444464,-1000.0,0.00054602,10]
[330026858,1718951444474,-151.0,0.00054602,14]
[330026859,1718951444483,-1000.0,0.00054602,10]
[330026860,1718951444493,-1000.0,0.00054602,10]
[330026861,1718951444502,-151.0,0.00054602,14]
[330026862,1718951444511,-1000.0,0.00054602,10]
[330026863,1718951444520,-1000.0,0.00054602,10]
[330026864,1718951444530,-1000.0,0.00054602,10]
[330026865,1718951444539,-1000.0,0.00054602,10]
[330026866,1718951444549,-1000.0,0.00054602,10]
[330026867,1718951444559,-1000.0,0.00054602,10]
[330026868,1718951444568,-151.0,0.00054602,14]
[330026869,1718951444577,-1000.0,0.00054602,10]
[330026870,1718951444587,-151.0,0.00054602,14]
[330026871,1718951444598,-1533.31,0.00054602,120]
[330026872,1718951444607,-1000.0,0.00054602,10]
[330026873,1718951444619,-250.108167,0.00054602,14]
[330026874,1718951444628,-1000.0,0.00054602,10]
[330026875,1718951444637,-1000.0,0.00054602,10]
[330026876,1718951444646,-621.52,0.00054602,120]
[330026877,1718951444655,-1000.0,0.00054602,10]
[330026878,1718951444665,-500.0,0.00054602,120]
[330026879,1718951444675,-1000.0,0.00054602,10]
[330026880,1718951444684,-33491.83,0.00054602,120]
[330026881,1718951444696,-1000.0,0.00054602,10]
[330026882,1718951444706,-1000.0,0.00054602,10]
[330026883,1718951444716,-632.78348692,0.00054602,10]
[330026884,1718951444870,-594.35913477,0.0005452,120]
[330026885,1718951444880,-367.21651308,0.00054602,10]
[330026886,1718951444889,-1000.0,0.00054602,10]
[330026887,1718951444899,-1000.0,0.00054602,10]
[330026888,1718951444909,-500.0,0.00054602,120]
[330026889,1718951444918,-52.08987259,0.00054602,10]
[330026890,1718951444929,-604.0,0.00054602,10]
[330026891,1718951444942,-343.91012741,0.00054602,10]
[330026892,1718951444952,-1000.0,0.00054602,10]
[330026893,1718951444962,-1.23816943,0.00054602,10]
[330026894,1718951444973,-998.76183057,0.00054602,10]
[330026895,1718951444983,-500.0,0.00054602,120]
[330026896,1718951444993,-500.0,0.00054602,120]
[330026897,1718951445002,-1131.553205,0.00054602,10]
[330026898,1718951445012,-500.0,0.00054602,120]
[330026899,1718951445021,-450.30132627,0.00054602,120]
[330026900,1718951445087,-500.0,0.0005452,120]
[330026901,1718951445097,-49.69867373,0.00054602,120]
[330026902,1718951445108,-1340.85,0.00054602,120]
[330026903,1718951445122,-3623.21,0.00054602,21]
[330026904,1718951445132,-500.0,0.00054602,120]
[330026905,1718951445141,-2283.39,0.00054602,120]
[330026906,1718951445152,-500.0,0.00054602,120]
[330026907,1718951445161,-151.0,0.00054602,14]
[330026908,1718951445171,-151.0,0.00054602,14]
[330026909,1718951445180,-151.0,0.00054602,14]
[330026910,1718951445192,-517.0,0.00054602,120]
[330026911,1718951445201,-494.60862633,0.00054602,120]
[330026912,1718951445211,-2302.4451363,0.00054602,120]
[330026915,1718951446477,-1235.68,0.0005452,120]
[330026916,1718951446487,-1235.68,0.0005452,120]
[330026917,1718951446496,-1235.68,0.0005452,120]
[330026918,1718951446506,-1235.68,0.0005452,120]
[330026919,1718951446515,-3567.2348637,0.00054602,120]
[330026920,1718951446524,-500.0,0.00054602,120]
[330026921,1718951446533,-151.0,0.00054602,14]
[330026922,1718951446542,-234.425487,0.00054602,14]
[330026923,1718951446552,-1115.93,0.00054602,120]
[330026924,1718951446562,-151.0,0.00054602,14]
[330026925,1718951446572,-151.0,0.00054602,14]
[330026926,1718951446581,-234.425487,0.00054602,14]
[330026927,1718951446592,-151.0,0.00054602,14]
[330026928,1718951446603,-234.425487,0.00054602,14]
[330026929,1718951446612,-151.0,0.00054602,14]
[330026930,1718951446624,-234.425487,0.00054602,14]
[330026931,1718951446633,-209.15030668,0.00054602,120]
[330026932,1718951446642,-500.0,0.00054602,120]
[330026933,1718951446651,-234.425487,0.00054602,14]
[330026934,1718951446660,-234.425487,0.00054602,14]
[330026935,1718951446669,-234.425487,0.00054602,14]
[330026936,1718951446678,-234.425487,0.00054602,14]
[330026937,1718951446688,-7130.89,0.00054602,120]
[330026938,1718951446698,-644.85,0.00054602,120]
[330026939,1718951446707,-500.0,0.00054602,120]
[330026940,1718951446717,-500.0,0.00054602,120]
[330026941,1718951446727,-151.0,0.00054602,14]
[330026942,1718951446737,-151.0,0.00054602,14]
[330026943,1718951446748,-258.053702,0.00054602,14]
[330026944,1718951446759,-686.09,0.00054602,120]
[330026945,1718951446769,-395.29328761,0.00054602,120]
[330026946,1718951446780,-2070.11,0.00054602,120]
[330026947,1718951446790,-500.0,0.00054602,120]
[330026948,1718951446800,-151.0,0.00054602,14]
[330026949,1718951446810,-151.0,0.00054602,14]
[330026950,1718951446819,-274.471517,0.00054602,14]
[330026951,1718951446829,-835.52,0.00054602,120]
[330026952,1718951446838,-6612.53,0.00054602,120]
[330026953,1718951446847,-1817.453159,0.00054602,14]
[330026954,1718951446856,-1817.453159,0.00054602,14]
[330026955,1718951446865,-1817.453159,0.00054602,14]
[330026956,1718951446876,-1817.453159,0.00054602,14]
[330026957,1718951446885,-533.2,0.00054602,120]
[330026958,1718951446894,-500.0,0.00054602,120]
[330026959,1718951446903,-1817.453159,0.00054602,14]
[330026960,1718951446913,-1817.453159,0.00054602,14]
[330026961,1718951446924,-1817.453159,0.00054602,14]
[330026962,1718951446934,-1817.453159,0.00054602,14]
[330026963,1718951446944,-667.97,0.00054602,120]
[330026964,1718951446953,-500.0,0.00054602,120]
[330026965,1718951446962,-500.0,0.00054602,120]
[330026966,1718951446971,-1083.48,0.00054602,120]
[330026967,1718951446981,-433.06107978,0.00054602,120]
[330026968,1718951446991,-500.0,0.00054602,120]
[330026969,1718951447001,-151.0,0.00054602,14]
[330026970,1718951447011,-500.0,0.00054602,120]
[330026971,1718951447021,-152.675532,0.00054602,14]
[330026972,1718951447030,-500.0,0.00054602,120]
[330026973,1718951447040,-500.0,0.00054602,120]
[330026974,1718951447050,-1229.65,0.00054602,120]
[330026975,1718951447059,-1043.9,0.00054602,120]
[330026976,1718951447068,-2234.11,0.00054602,120]
[330026977,1718951447078,-500.0,0.00054602,120]
[330026978,1718951447088,-1651.76,0.00054602,120]
[330026979,1718951447097,-572.66,0.00054602,120]
[330026980,1718951447109,-500.0,0.00054602,60]
[330026981,1718951447122,-544.89089137,0.00054602,120]
[330026982,1718951447131,-608.47,0.00054602,120]
[330026983,1718951447140,-529.09,0.00054602,120]
[330026984,1718951447150,-611.83,0.00054602,120]
[330026985,1718951447160,-500.0,0.00054602,120]
[330026986,1718951447169,-524.02,0.00054602,120]
[330026987,1718951447178,-696.78,0.00054602,120]
[330026988,1718951447191,-646.85467751,0.00054602,120]
[330026989,1718951447201,-500.0,0.00054602,120]
[330026990,1718951447212,-627.36,0.00054602,2]
[330026991,1718951447222,-151.0,0.00054602,14]
[330026992,1718951447233,-1598.1,0.00054602,120]
[330026993,1718951447244,-151.0,0.00054602,14]
[330026994,1718951447254,-151.0,0.00054602,14]
[330026995,1718951447264,-510.38,0.00054602,120]
[330026996,1718951447274,-151.0,0.00054602,14]
[330026997,1718951447283,-5566.914766,0.00054602,14]
[330026998,1718951447380,-5566.914766,0.00054602,14]
[330026999,1718951447390,-5566.914766,0.00054602,14]
[330027000,1718951447399,-5566.914766,0.00054602,14]
[330027001,1718951447408,-500.0,0.00054602,120]
[330027002,1718951447419,-5566.914766,0.00054602,14]
[330027003,1718951447428,-5566.914766,0.00054602,14]
[330027004,1718951447437,-5566.914766,0.00054602,14]
[330027005,1718951447447,-5566.914766,0.00054602,14]
[330027006,1718951447457,-500.0,0.00054683,2]
[330027007,1718951447466,-500.0,0.00054683,2]
[330027008,1718951447475,-500.0,0.00054683,2]
[330027009,1718951447485,-500.0,0.00054683,2]
[330027010,1718951447494,-151.0,0.00054683,14]
[330027011,1718951447503,-151.0,0.00054683,14]
[330027012,1718951447513,-2031.29,0.00054683,120]
[330027013,1718951447522,-2031.29,0.00054683,120]
[330027014,1718951447531,-2031.29,0.00054683,120]
[330027015,1718951447541,-2031.29,0.00054683,120]
[330027016,1718951447551,-2031.29,0.00054683,120]
[330027017,1718951447560,-221.642433,0.00054683,14]
[330027018,1718951447570,-151.0,0.00054683,14]
[330027019,1718951447582,-221.642433,0.00054683,14]
[330027020,1718951447592,-563.46,0.00054683,120]
[330027021,1718951447601,-563.46,0.00054683,120]
[330027022,1718951447610,-563.46,0.00054683,120]
[330027023,1718951447620,-563.46,0.00054683,120]
[330027024,1718951447629,-563.46,0.00054683,120]
[330027025,1718951447639,-151.0,0.00054683,14]
[330027026,1718951447648,-328.577099,0.00054684,14]
[330027027,1718951447657,-328.577099,0.00054684,14]
[330027028,1718951447666,-500.0,0.00054684,120]
[330027029,1718951447675,-500.0,0.00054684,120]
[330027030,1718951447684,-500.0,0.00054684,120]
[330027031,1718951447694,-500.0,0.00054684,120]
[330027032,1718951447703,-500.0,0.00054684,120]
[330027033,1718951447712,-1001.78,0.00054684,120]
[330027034,1718951447721,-500.0,0.00054684,120]
[330027035,1718951447730,-507.12,0.00054684,120]
[330027036,1718951447739,-174.45384637,0.00054684,120]
[330027037,1718951447749,-809.0,0.00054684,120]
[330027038,1718951447758,-600.0,0.00054684,120]
[330027039,1718951447768,-500.0,0.00054684,120]
[330027040,1718951447778,-500.0,0.00054684,120]
[330027041,1718951447788,-151.0,0.00054684,14]
[330027042,1718951447797,-151.0,0.00054684,14]
[330027043,1718951447806,-151.0,0.00054684,14]
[330027044,1718951447815,-1159.87,0.00054684,120]
[330027045,1718951447824,-500.0,0.00054684,120]
[330027046,1718951447833,-500.0,0.00054684,120]
[330027047,1718951447842,-1724.85,0.00054684,120]
[330027048,1718951447851,-500.0,0.00054684,120]
[330027049,1718951447860,-1588.15,0.00054684,120]
[330027050,1718951447871,-1183.22,0.00054684,120]
[330027051,1718951447880,-237.604234,0.00054684,14]
[330027052,1718951447889,-237.604234,0.00054684,14]
[330027053,1718951447899,-237.604234,0.00054684,14]
[330027054,1718951447908,-237.604234,0.00054684,14]
[330027055,1718951447918,-237.604234,0.00054684,14]
[330027056,1718951447928,-237.604234,0.00054684,14]
[330027057,1718951447938,-500.0,0.00054684,120]
[330027058,1718951447947,-500.0,0.00054684,120]
[330027059,1718951447957,-500.0,0.00054684,120]
[330027060,1718951447966,-501.45660108,0.00054684,120]
[330027061,1718951447976,-646.85,0.00054684,120]
[330027062,1718951447985,-562.73,0.00054684,120]
[330027063,1718951447995,-500.0,0.00054684,120]
[330027064,1718951448004,-1175.59,0.00054684,120]
[330027065,1718951448013,-2000.0,0.00054684,5]
[330027066,1718951448022,-500.0,0.00054684,120]
[330027067,1718951448032,-896.86,0.00054684,120]
[330027068,1718951448040,-500.0,0.00054684,120]
[330027069,1718951448050,-500.0,0.00054684,120]
[330027070,1718951448059,-500.0,0.00054684,120]
[330027071,1718951448068,-500.0,0.00054684,120]
[330027072,1718951448077,-500.0,0.00054684,120]
[330027073,1718951448086,-500.0,0.00054684,120]
[330027074,1718951448095,-500.0,0.00054684,120]
[330027075,1718951448105,-500.0,0.00054684,120]
[330027076,1718951448118,-734.82,0.00054684,120]
[330027077,1718951448126,-500.0,0.00054684,120]
[330027078,1718951448135,-500.0,0.00054684,120]
[330027079,1718951448145,-646.95,0.00054684,120]
[330027080,1718951448154,-500.0,0.00054684,120]
[330027081,1718951448164,-613.12,0.00054684,120]
[330027082,1718951448173,-637.06,0.00054684,120]
[330027083,1718951448183,-500.0,0.00054684,120]
[330027084,1718951448193,-1005.46,0.00054684,120]
[330027085,1718951448202,-500.0,0.00054684,120]
[330027086,1718951448212,-151.0,0.00054684,14]
[330027087,1718951448222,-151.0,0.00054684,14]
[330027088,1718951448233,-151.0,0.00054684,14]
[330027089,1718951448242,-1691.0,0.00054684,120]
[330027090,1718951448251,-1230.04,0.00054684,120]
[330027091,1718951448260,-1976.48,0.00054684,120]
[330027092,1718951448269,-500.0,0.00054684,120]
[330027093,1718951448278,-512.2394021,0.00054684,120]
[330027094,1718951448287,-500.0,0.00054684,120]
[330027095,1718951448297,-500.0,0.00054684,120]
[330027096,1718951448306,-162.89436,0.00054684,14]
[330027097,1718951448315,-500.0,0.00054684,120]
[330027098,1718951448324,-500.0,0.00054684,120]
[330027099,1718951448333,-500.0,0.00054684,120]
[330027100,1718951448343,-500.0,0.00054684,120]
[330027101,1718951448352,-500.0,0.00054684,120]
[330027102,1718951448361,-799.69,0.00054684,120]
[330027103,1718951448371,-500.0,0.00054684,7]
[330027104,1718951448380,-500.0,0.00054684,120]
[330027105,1718951448390,-500.0,0.00054684,120]
[330027106,1718951448399,-500.0,0.00054684,120]
[330027107,1718951448408,-729.24,0.00054684,120]
[330027108,1718951448417,-1148.87,0.00054684,120]
[330027109,1718951448426,-3598.75,0.00054684,120]
[330027110,1718951448435,-500.0,0.00054684,120]
[330027111,1718951448445,-500.0,0.00054684,120]
[330027112,1718951448454,-151.0,0.00054684,14]
[330027113,1718951448463,-151.0,0.00054684,14]
[330027114,1718951448473,-221.642433,0.00054684,14]
[330027115,1718951448482,-221.642433,0.00054684,14]
[330027116,1718951448491,-151.0,0.00054684,14]
[330027117,1718951448500,-151.0,0.00054684,14]
[330027118,1718951448509,-500.0,0.00054684,120]
[330027119,1718951448520,-500.0,0.00054684,120]
[330027120,1718951448529,-221.642433,0.00054684,14]
[330027121,1718951448538,-221.642433,0.00054684,14]
[330027122,1718951448547,-1237.19,0.00054684,120]
[330027123,1718951448556,-216.11086898,0.00054684,14]
[330027124,1718951448600,-301.99780934,0.00054684,14]
[330027125,1718951448611,-92.05227068,0.00054684,14]
[330027126,1718951448621,-610.160949,0.00054684,14]
[330027127,1718951448630,-610.160949,0.00054684,14]
[330027128,1718951448641,-2020.21,0.00054684,120]
[330027129,1718951448650,-12326.84,0.00054684,120]
[330027130,1718951448661,-610.160949,0.00054684,14]
[330027131,1718951448670,-610.160949,0.00054684,14]
[330027132,1718951448680,-610.160949,0.00054684,14]
[330027133,1718951448689,-883.04,0.00054684,120]
[330027134,1718951448698,-5120.93,0.00054684,120]
[330027135,1718951448707,-1427.93,0.00054684,120]
[330027136,1718951448716,-1594.25,0.00054684,120]
[330027137,1718951448725,-500.0,0.00054684,120]
[330027138,1718951448734,-2443.82,0.00054684,120]
[330027139,1718951448744,-716.9,0.00054684,120]
[330027140,1718951448753,-19827.42,0.00054684,120]
[330027141,1718951448763,-1645.57,0.00054684,120]
[330027142,1718951448772,-500.0,0.00054684,120]
[330027143,1718951448781,-982.3,0.00054684,120]
[330027144,1718951448791,-500.0,0.00054684,120]
[330027145,1718951448800,-3500.042747,0.00054684,14]
[330027146,1718951448809,-3500.042747,0.00054684,14]
[330027147,1718951448819,-3500.042747,0.00054684,14]
[330027148,1718951448828,-1317.39,0.00054684,120]
[330027149,1718951448837,-500.0,0.00054684,120]
[330027150,1718951448846,-500.0,0.00054684,120]
[330027151,1718951448855,-3500.042747,0.00054684,14]
[330027152,1718951448864,-3500.042747,0.00054684,14]
[330027153,1718951448875,-3500.042747,0.00054684,14]
[330027154,1718951448885,-250.0,0.00054684,120]
[330027155,1718951448893,-500.0,0.00054684,120]
[330027156,1718951448903,-650.522362,0.00054684,14]
[330027157,1718951448912,-650.522362,0.00054684,14]
[330027158,1718951448921,-650.522362,0.00054684,14]
[330027159,1718951448930,-650.522362,0.00054684,14]
[330027160,1718951448939,-650.522362,0.00054684,14]
[330027161,1718951448948,-650.522362,0.00054684,14]
[330027162,1718951448957,-151.0,0.00054684,14]
[330027163,1718951448967,-151.0,0.00054684,14]
[330027164,1718951448976,-151.0,0.00054684,14]
[330027165,1718951448986,-1533.31,0.00054684,120]
[330027166,1718951448994,-621.52,0.00054684,120]
[330027167,1718951449004,-500.0,0.00054684,120]
[330027168,1718951449013,-33491.83,0.00054684,120]
[330027169,1718951449022,-500.0,0.00054684,120]
[330027170,1718951449031,-150.92573084,0.00054684,120]
[330027171,1718951449040,-500.0,0.00054684,120]
[330027172,1718951449049,-500.0,0.00054684,120]
[330027173,1718951449059,-500.0,0.00054684,120]
[330027174,1718951449067,-1340.85,0.00054684,120]
[330027175,1718951449077,-500.0,0.00054684,120]
[330027176,1718951449086,-3623.21,0.00054684,21]
[330027177,1718951449095,-2283.39,0.00054684,120]
[330027178,1718951449183,-517.0,0.00054684,120]
[330027179,1718951449194,-5869.68,0.00054684,120]
[330027180,1718951449203,-500.0,0.00054684,120]
[330027181,1718951449212,-151.0,0.00054684,14]
[330027182,1718951449222,-151.0,0.00054684,14]
[330027183,1718951449231,-151.0,0.00054684,14]
[330027184,1718951449240,-1115.93,0.00054684,120]
[330027185,1718951449251,-229.48806,0.00054684,14]
[330027186,1718951449260,-234.425487,0.00054684,14]
[330027187,1718951449269,-234.425487,0.00054684,14]
[330027188,1718951449278,-234.425487,0.00054684,14]
[330027189,1718951449288,-500.0,0.00054684,120]
[330027190,1718951449297,-234.425487,0.00054684,14]
[330027191,1718951449306,-234.425487,0.00054684,14]
[330027192,1718951449315,-234.425487,0.00054684,14]
[330027193,1718951449324,-4198.31879685,0.00054684,120]
[330027194,1718951468504,250.0,0.00039781,2]
[330027200,1718952279424,-5100.0,0.00018744,2]
[330027201,1718952332100,-379.90674542,0.00018744,2]
[330027202,1718952397323,-192.83251599,0.00018744,2]
[330027203,1718952432097,-409.57116,0.00018744,2]
[330027204,1718952433108,-500.0,0.00018744,2]
[330027205,1718952433136,-457.69616298,0.00018744,2]
[330027206,1718952444100,-432.82700417,0.00018744,2]
[330027207,1718952444119,-257.00200324,0.00021,2]
[330027208,1718952444138,-423.575011,0.00027412,2]
[330027209,1718952444158,-275.0633211,0.00027414,2]
[330027210,1718952444179,-949.3031283,0.00027489,2]
[330027211,1718952444201,-199.258817,0.00027505,2]
[330027212,1718952444222,-250.0,0.00027615,2]
[330027213,1718952444240,-400.0,0.00030395,2]
[330027214,1718952444260,-9052.82706543,0.00030396,4]
[330027215,1718952444279,-932.35581824,0.00030397,4]
[330027216,1718952444298,-946.55129583,0.00031177,2]
[330027217,1718952444318,-42890.35558378,0.00031281,2]
[330027218,1718952444338,-326.0,0.00033434,2]
[330027219,1718952444358,-376.51,0.00037472,3]
[330027220,1718952444377,-1165.83948773,0.00041466,2]
[330027221,1718952444397,-855.72,0.00043906,30]
[330027222,1718952444418,-702.15070324,0.00043916,4]
[330027223,1718952444437,-150.0,0.00052584,4]
[330027224,1718952444459,-262.23242682,0.00053299,4]
[330027225,1718952444479,-519.79,0.00053899,30]
[330027226,1718952444500,-1000.0,0.00054,54]
[330027227,1718952444520,-521.18,0.0005429,3]
[330027228,1718952444544,-434.32,0.0005429,3]
[330027229,1718952444563,-361.93,0.0005429,3]
[330027230,1718952444584,-8258.195999,0.000543,120]
[330027231,1718952444603,-2000.0,0.000545,120]
[330027232,1718952444622,-2000.0,0.000545,120]
[330027233,1718952444641,-2000.0,0.000545,120]
[330027234,1718952444659,-2000.0,0.000545,120]
[330027235,1718952444678,-2000.0,0.000545,120]
[330027236,1718952444696,-2000.0,0.000545,120]
[330027237,1718952444715,-2000.0,0.000545,120]
[330027238,1718952444736,-2000.0,0.000545,120]
[330027239,1718952444756,-2000.0,0.000545,120]
[330027240,1718952444775,-1999.0,0.000545,120]
[330027241,1718952444794,-504.08113203,0.0005452,120]
[330027242,1718952444813,-500.0,0.0005452,120]
[330027243,1718952444832,-500.0,0.0005452,120]
[330027244,1718952444852,-509.01288746,0.0005452,120]
[330027245,1718952444870,-500.0,0.0005452,120]
[330027246,1718952444890,-503.70946691,0.0005452,15]
[330027247,1718952444909,-876.56,0.0005452,120]
[330027248,1718952444929,-600.0,0.0005452,120]
[330027249,1718952444948,-639.82,0.0005452,120]
[330027250,1718952444967,-500.0,0.0005452,120]
[330027251,1718952444988,-707.87,0.0005452,120]
[330027252,1718952445007,-500.0,0.0005452,120]
[330027253,1718952445026,-1014.89,0.0005452,120]
[330027254,1718952445044,-500.0,0.0005452,120]
[330027255,1718952445064,-500.0,0.0005452,120]
[330027256,1718952445084,-500.0,0.0005452,120]
[330027257,1718952445103,-502.49385359,0.0005452,120]
[330027258,1718952445123,-162.35404407,0.0005452,120]
[330027259,1718952445143,-500.0,0.0005452,120]
[330027260,1718952445164,-500.0,0.0005452,120]
[330027261,1718952445182,-503.68745547,0.0005452,120]
[330027262,1718952445202,-500.0,0.0005452,120]
[330027263,1718952445222,-598.55,0.0005452,120]
[330027264,1718952445242,-500.0,0.0005452,120]
[330027265,1718952445261,-2000.0,0.0005452,5]
[330027266,1718952445284,-821.52,0.0005452,120]
[330027267,1718952445303,-502.60259629,0.0005452,120]
[330027268,1718952445325,-500.0,0.0005452,120]
[330027269,1718952445350,-340.75896231,0.0005452,120]
[330027270,1718952445370,-672.75,0.0005452,120]